Cogmind - Beta 13 @@@ ROGUE MODE // 2024.06.29 @ 21:46:48 Player: buwwet Result: Destroyed by S-27 Virus with Autogun Performance ------------- Evolutions (3) 1500 Regions Visited (10) 2000 Robots Destroyed (53) 265 Value Destroyed (1640) 1640 Prototype IDs (1) 20 Alien Tech Used (0) 0 Bonus (1984) 1984 TOTAL SCORE: 7409 Bonus ------- Entered Garrisons 200 Used RIF Installer 1000 Entered DSFs 500 Aligned with FarCom 300 Friendly Fire -16 Cogmind --------- Core Integrity 0/700 Matter 230/300 Energy 99/100 System Corruption 16% Temperature Cool (0) Movement Core (100) Ox1 Location -7/Garrison Parts ------- > --- POWER (2) -------- (None) > --- PROPULSION (4) --- (None) > --- UTILITY (5) ------ Improved Melee Analysis Suite > --- WEAPON (2) ------- Great Maul > --- INVENTORY (5) ---- Transmission Jammer Flak Gun Gauss Cannon Peak State ------------ > --- POWER ------------ Light Ion Engine Deuterium Engine > --- PROPULSION ------- Light Treads Light Treads Light Treads Armored Treads > --- UTILITY ---------- Improved Heat Sink Large Storage Unit Light Armor Plating Hacking Suite System Shield > --- WEAPON ----------- Beam Rifle Great Maul > --- INVENTORY -------- Deuterium Engine Light Treads Carbon-fiber Leg Hover Unit Improved Hover Unit Medium Storage Unit Improved Terrain Scanner Targeting Computer Lightning Gun Pulse Rifle Firepult Gauss Cannon [Rating: 30] Favorites ----------- Power Light Ion Engine Engine Light Ion Engine Propulsion Light Treads Treads Light Treads Leg Carbon-fiber Leg Wheel Armored Wheel Hover Unit Hover Unit Utility Large Storage Unit Device Heat Sink Storage Large Storage Unit Processor Improved Melee Analysis Suite Hackware System Shield Protection Core Shielding Weapon Great Maul Energy Gun Small Laser Energy Cannon Firepult Ballistic Gun Assault Rifle Ballistic Cannon Gauss Cannon Launcher Grenade Launcher Impact Weapon Great Maul Build | -11 -10 -10 -10 -9 -8 -7 -7 -7 -7 -7 ------- Run | Yrd Mat Min Exi Min Mat Fac Was Fac DSF Gar Slots Evolved 6 | . . . . . 4 2 . . . . Power 1 | . . . . . 1 . . . . . Propulsion 2 | . . . . . 1 1 . . . . Utility 3 | . . . . . 2 1 . . . . Weapon . | . . . . . . . . . . . Parts Attached 74 | 6 9 9 . . 19 14 3 9 2 3 Power 10 | 1 1 2 . . 2 2 . 1 1 . Engine 10 | 1 1 2 . . 2 2 . 1 1 . Core . | . . . . . . . . . . . Reactor . | . . . . . . . . . . . Propulsion 25 | 2 1 3 . . 7 7 . 3 . 2 Treads 16 | 2 1 2 . . 4 5 . 1 . 1 Leg 1 | . . . . . . . . . . 1 Wheel 2 | . . . . . 2 . . . . . Hover 6 | . . 1 . . 1 2 . 2 . . Flight . | . . . . . . . . . . . Utility 20 | 1 5 1 . . 4 5 . 3 1 . Device 4 | . . . . . 2 1 . . 1 . Storage 6 | 1 4 . . . . 1 . . . . Processor 3 | . . . . . . 1 . 2 . . Hackware 3 | . . . . . . 2 . 1 . . Protection 4 | . 1 1 . . 2 . . . . . Artifact . | . . . . . . . . . . . Weapon 19 | 2 2 3 . . 6 . 3 2 . 1 Energy Gun 7 | 2 2 1 . . 2 . . . . . Energy Cannon 1 | . . . . . 1 . . . . . Ballistic Gun 4 | . . 1 . . 1 . . 2 . . Ballistic Cannon 1 | . . . . . . . . . . 1 Launcher 1 | . . 1 . . . . . . . . Special Weapon . | . . . . . . . . . . . Impact Weapon 5 | . . . . . 2 . 3 . . . Slashing Weapon . | . . . . . . . . . . . Piercing Weapon . | . . . . . . . . . . . Special Melee Weapon . | . . . . . . . . . . . Unidentified Prototypes 1 | . . . . . 1 . . . . . Parts Lost 31 | . 1 6 . . 3 13 . . . 8 Power 7 | . 1 1 . . 2 2 . . . 1 Propulsion 12 | . . 3 . . . 5 . . . 4 Utility 8 | . . . . . . 5 . . . 3 Weapon 4 | . . 2 . . 1 1 . . . . Highest Loss Streak 9 | . 1 2 . . 1 9 . . . 3 To Critical Strikes . | . . . . . . . . . . . Average Slot Usage (%) 86 | . 97 98 100 100 87 85 39 59 67 47 Engine 11 | . 12 13 14 14 12 11 . . 3 . Treads 21 | . 28 23 28 28 18 28 . . . 3 Wheel 2 | . . . . . 8 . . . . . Hover 1 | . . 3 . . . . 15 15 15 4 Device 3 | . . . . . 9 6 . . 3 6 Storage 9 | . 14 14 14 14 9 7 2 . . . Processor 1 | . . . . . . . 7 17 17 9 Hackware 1 | . . . . . . 2 7 10 15 5 Protection 10 | . 12 14 14 14 12 11 . . . . Energy Gun 10 | . 28 8 . . 8 6 . . . . Ballistic Gun 4 | . . 12 14 14 3 . . 6 3 . Launcher 2 | . . 7 14 14 1 . . . . . Impact Weapon 3 | . . . . . 5 7 4 7 7 7 Naked Turns . | . . . . . . . . . . . Heaviest Build 88 | 11 88 31 29 29 47 46 10 13 10 12 Greatest Support 80 | 40 40 40 40 40 40 80 13 20 13 20 Greatest Overweight (x) 3 | 3 2 1 . . 1 1 . 1 . 3 Average Overweight (x) . | . . . . . . . . . . . Largest Inventory Capacity 25 | 8 25 15 15 15 15 15 10 5 5 5 Average Capacity 13 | 7 13 15 15 15 15 14 7 5 5 5 Most Carried 15 | 3 15 13 13 13 15 15 9 5 5 4 Average Carried 11 | 1 10 10 11 13 13 13 6 4 4 1 Final Capacity 15 | 8 15 15 15 15 15 10 5 5 5 5 Final Carried 15 | 3 13 11 13 13 15 7 5 5 4 3 Class Distribution -------------------- 76% | Mutant 18% | Scavenger-Mutant 5% | Hacker-Mutant Dominant Class ---------------- Mutant | -10/Materials Mutant | -10/Mines Mutant | -10/Exiles Mutant | -9/Mines Mutant | -8/Materials Scavenger-Mutant | -7/Factory Mutant | -7/Waste Mutant | -7/Factory Hacker-Mutant | -7/DSF Mutant | -7/Garrison Resources | -11 -10 -10 -10 -9 -8 -7 -7 -7 -7 -7 ----------- Run | Yrd Mat Min Exi Min Mat Fac Was Fac DSF Gar Matter Collected 1106 | 173 177 303 . . 219 65 . . . 169 Remotely . | . . . . . . . . . . . Salvage Created 2101 | . 774 212 . . 668 278 . . . 169 Parts 94 | . 42 3 . . 28 18 . . . 3 Haulers Intercepted 3 | . 2 . . . 1 . . . . . Recyclers Shooed . | . . . . . . . . . . . Parts Field Recycled . | . . . . . . . . . . . Retrieved Matter . | . . . . . . . . . . . Parts Self-Destructed . | . . . . . . . . . . . Prevented . | . . . . . . . . . . . Kills | -11 -10 -10 -10 -9 -8 -7 -7 -7 -7 -7 ------- Run | Yrd Mat Min Exi Min Mat Fac Was Fac DSF Gar Combat Hostiles Destroyed 47 | . 12 13 . . 12 6 . . . 4 Melee 9 | . . . . . 4 4 . . . 1 Guns 27 | . 11 11 . . 5 . . . . . AOE 4 | . 1 2 . . . 1 . . . . Classes Destroyed 13 | . 7 2 . . 1 3 . . . . Worker 2 | . 1 . . . . 1 . . . . Builder 1 | . . . . . . 1 . . . . Hauler 3 | . 2 . . . 1 . . . . . Recycler 4 | . 1 . . . 3 . . . . . Mechanic 1 | . . . . . . 1 . . . . Operator 3 | . 2 . . . 1 . . . . . Watcher 3 | . 3 . . . . . . . . . Swarmer 6 | . 3 . . . 3 . . . . . Grunt 18 | . 9 . . . 4 3 . . . 2 Sentry 7 | . . 2 . . 4 1 . . . . Hunter 1 | . . . . . 1 . . . . . Programmer 4 | . . . . . . 2 . . . 2 Assembled 11 | . . 11 . . . . . . . . Best Kill Streak 5 | . 5 3 . . 4 3 . . . 2 Combat Bots Only 4 | . 3 3 . . 4 1 . . . 2 Max Kills in Single Turn 3 | . 2 1 . . 1 3 . . . 1 Gunslinging 1 | . 1 . . . . . . . . . Exploded 1 | . 1 1 . . . 1 . . . . Melee 1 | . . . . . 1 1 . . . 1 Uniques/NPCs Destroyed . | . . . . . . . . . . . Combat | -11 -10 -10 -10 -9 -8 -7 -7 -7 -7 -7 -------- Run | Yrd Mat Min Exi Min Mat Fac Was Fac DSF Gar Hostile Shots Fired 387 | . 44 66 . . 90 102 . . 10 75 Missed 98 | . 3 17 . . 24 31 . . 6 17 Damage Taken 4627 | . 482 885 . . 834 1422 . . 75 929 Core 994 | . 132 104 . . 53 377 . . . 328 Absorbed by Shields 35 | . . . . . . . . . . 35 Redirected to Shielding 30 | . 4 16 . . 10 . . . . . Core Remaining (%) 65 | 100 . . . 5 90 . . . . . Volleys Fired 126 | . 45 53 . . 19 8 . 1 . . Largest 2 | . 2 2 . . 2 1 . 1 . . Hottest 119 | . 105 115 . . 119 56 . 28 . . Shots Fired 217 | . 88 90 . . 29 8 . 1 . 1 Gun 205 | . 88 81 . . 27 8 . 1 . . Cannon 1 | . . . . . . . . . . 1 Launcher 11 | . . 9 . . 2 . . . . . Special . | . . . . . . . . . . . Kinetic 57 | . . 47 . . 8 . . 1 . 1 Thermal 121 | . 60 34 . . 19 8 . . . . Explosive 11 | . . 9 . . 2 . . . . . Electromagnetic 28 | . 28 . . . . . . . . . Robot Hit Streak 10 | . 10 7 . . 6 2 . . . . Robot Miss Streak 4 | . 3 4 . . 2 2 . . . . Penetration Max . | . . . . . . . . . . . Secondary Targets 2 | . 2 . . . . . . . . . Max Gunslinging Chain 1 | . 1 . . . . . . . . . Shots Hit Robots 184 | . 61 46 . . 37 23 . . . 17 Core Hits 86 | . 32 28 . . 16 10 . . . . Critical Kills 6 | . . . . . 2 4 . . . . Critical Parts Destroyed 14 | . . 1 . . 6 2 . . . 5 Critical Strikes 22 | . . 2 . . 9 6 . . . 5 Burn 2 | . . 1 . . 1 . . . . . Destroy 1 | . . 1 . . . . . . . . Smash 19 | . . . . . 8 6 . . . 5 Melee Attacks 117 | . . . . . 45 41 . 6 . 25 Impact 117 | . . . . . 45 41 . 6 . 25 Slashing . | . . . . . . . . . . . Piercing . | . . . . . . . . . . . Sneak Attacks 6 | . . . . . 4 2 . . . . Combat Hostiles . | . . . . . . . . . . . Follow-up Attacks . | . . . . . . . . . . . Damage Inflicted 5144 | . 900 707 . . 1475 1274 . . . 788 Guns 1677 | . 793 541 . . 281 62 . . . . Cannons . | . . . . . . . . . . . Explosions 625 | . 107 166 . . 67 285 . . . . Melee 2831 | . . . . . 1116 927 . . . 788 Ramming 11 | . . . . . 11 . . . . . Kinetic 344 | . . 281 . . 63 . . . . . Thermal 1401 | . 576 260 . . 218 347 . . . . Explosive 233 | . . 166 . . 67 . . . . . Electromagnetic 324 | . 324 . . . . . . . . . Impact 2831 | . . . . . 1116 927 . . . 788 Slashing . | . . . . . . . . . . . Piercing . | . . . . . . . . . . . Highest Corruption 16 | . . . . . 2 4 13 13 13 16 Average Corruption 9 | . . . . . 2 1 11 13 13 15 Corruption Purged . | . . . . . . . . . . . Corruption Blocked . | . . . . . . . . . . . Effects 39 | . . . . . 1 4 6 9 . 19 Message Errors 8 | . . . . . . 1 1 1 . 5 Matter Fused 9 | . . . . . 1 1 . 3 . 4 Heat Flow Errors 6 | . . . . . . 1 . 4 . 1 Energy Discharges 6 | . . . . . . . . 1 . 5 Parts Rejected 1 | . . . . . . . 1 . . . Data Loss (minor) 5 | . . . . . . 1 1 . . 3 Misfires 1 | . . . . . . . . . . 1 Misdirections 3 | . . . . . . . 3 . . . Overload Shots . | . . . . . . . . . . . Overflow Damage 1092 | . 13 . . . 465 303 . . . 311 Projectiles . | . . . . . . . . . . . Explosions 179 | . 13 . . . . 166 . . . . Melee 913 | . . . . . 465 137 . . . 311 Knockbacks 10 | . . . . . 3 5 . . . 2 Impact 10 | . . . . . 3 5 . . . 2 Kinetic . | . . . . . . . . . . . Secondary . | . . . . . . . . . . . Self-Inflicted Damage 218 | . . 59 . . . 159 . . . . Shots 5 | . . 3 . . . 2 . . . . Rammed 1 | . . . . . 1 . . . . . Targets Rammed 1 | . . . . . 1 . . . . . Kicked . | . . . . . . . . . . . Crushed . | . . . . . . . . . . . Highest Temperature 312 | . 312 216 . . 42 30 . 271 . 193 Average Temperature 75 | . 88 55 . . 17 16 . 107 . 108 Received Heat Transfer 1192 | . 246 174 . . 297 138 . . . 337 Effects 2 | . 2 . . . . . . . . . Energy Bleed 1 | . 1 . . . . . . . . . Interference 1 | . 1 . . . . . . . . . Siege Activations . | . . . . . . . . . . . Robots Corrupted . | . . . . . . . . . . . Combat Hostiles . | . . . . . . . . . . . Parts Fried 14 | . . . . . 9 2 . . . 3 Impact Corruptions 31 | . . . . . 12 6 . . . 13 Robots Melted . | . . . . . . . . . . . Combat Hostiles . | . . . . . . . . . . . Parts Melted 4 | . 1 . . . 3 . . . . . Heat Transferred 2940 | . 1245 742 . . 555 398 . . . . Parts Sabotaged . | . . . . . . . . . . . Parts Stolen . | . . . . . . . . . . . Parts Stripped . | . . . . . . . . . . . Power Chain Reactions 2 | . 2 . . . . . . . . . Alert | -11 -10 -10 -10 -9 -8 -7 -7 -7 -7 -7 ------- Run | Yrd Mat Min Exi Min Mat Fac Was Fac DSF Gar Peak Influence 204 | . 136 108 . . 204 139 79 119 98 138 Initial 92 | . . . . . . 92 34 55 83 73 Average 50 | . 46 33 . . 37 67 56 95 85 117 Maximum Alert Level 1 | . . . . . 1 . . . . . Low Security (%) 99 | 100 100 100 . 100 96 100 100 100 100 100 Level 1 . | . . . . . 3 . . . . . Level 2 . | . . . . . . . . . . . Level 3 . | . . . . . . . . . . . Level 4 . | . . . . . . . . . . . Level 5 . | . . . . . . . . . . . High Security . | . . . . . . . . . . . Max Security . | . . . . . . . . . . . Squads Dispatched 14 | . 3 . . . 3 5 . 3 . . Investigation 7 | . 1 . . . 1 2 . 3 . . Extermination 2 | . . . . . . 2 . . . . Reinforcement 5 | . 2 . . . 2 1 . . . . Assault . | . . . . . . . . . . . Garrison . | . . . . . . . . . . . Intercept . | . . . . . . . . . . . Searches Triggered . | . . . . . . . . . . . Construction Impeded . | . . . . . . . . . . . Haulers Reinforced . | . . . . . . . . . . . Active Scanning Responses . | . . . . . . . . . . . Cargo Convoy Interrupts . | . . . . . . . . . . . Stealth | -11 -10 -10 -10 -9 -8 -7 -7 -7 -7 -7 --------- Run | Yrd Mat Min Exi Min Mat Fac Was Fac DSF Gar Distress Signals 2 | . 1 . . . 1 . . . . . Communications Jammed . | . . . . . . . . . . . Distress Signals . | . . . . . . . . . . . Times Spotted 75 | . 18 14 . . 18 10 5 . 1 9 Peak Tracking Total 6 | . 3 3 . . 4 5 6 3 2 3 Tactical Retreats 8 | . . 2 . . 1 2 . 1 1 1 Traps | -11 -10 -10 -10 -9 -8 -7 -7 -7 -7 -7 ------- Run | Yrd Mat Min Exi Min Mat Fac Was Fac DSF Gar Traps Triggered 12 | . 2 . . . 2 2 . 3 . 3 Indirectly . | . . . . . . . . . . . Trap Hack Attempts . | . . . . . . . . . . . Triggered . | . . . . . . . . . . . Disarmed . | . . . . . . . . . . . Reprogrammed . | . . . . . . . . . . . Reused . | . . . . . . . . . . . Traps Extracted . | . . . . . . . . . . . Installed . | . . . . . . . . . . . Triggered . | . . . . . . . . . . . Machines | -11 -10 -10 -10 -9 -8 -7 -7 -7 -7 -7 ---------- Run | Yrd Mat Min Exi Min Mat Fac Was Fac DSF Gar Machines Disabled 8 | . . 2 . . . 4 . . . 2 Max in Single Turn 4 | . . 2 . . . 4 . . . 1 Machines Repaired . | . . . . . . . . . . . Machines Dismantled . | . . . . . . . . . . . Machines Sabotaged . | . . . . . . . . . . . Overloaded Fab Kills . | . . . . . . . . . . . Hacking | -11 -10 -10 -10 -9 -8 -7 -7 -7 -7 -7 --------- Run | Yrd Mat Min Exi Min Mat Fac Was Fac DSF Gar Machines Accessed 21 | . 6 . . 1 4 4 . 6 . . Terminals 15 | . 6 . . 1 2 3 . 3 . . Fabricators 1 | . . . . . . . . 1 . . Repair Stations . | . . . . . . . . . . . Recycling Units . | . . . . . . . . . . . Scanalyzers 5 | . . . . . 2 1 . 2 . . Garrison Access . | . . . . . . . . . . . Total Hacks 57 | . 15 . . 2 16 8 . 16 . . Successful 24 | . 3 . . . 13 . . 8 . . Failed 33 | . 12 . . 2 3 8 . 8 . . Catastrophic 9 | . 4 . . . 1 1 . 3 . . Database Lockouts . | . . . . . . . . . . . Manual 19 | . 12 . 1 2 4 . . . . . Terminals 34 | . 15 . . 2 4 6 . 7 . . Fabricators 3 | . . . . . . . . 3 . . Repair Stations . | . . . . . . . . . . . Recycling Units . | . . . . . . . . . . . Scanalyzers 20 | . . . . . 12 2 . 6 . . Garrison Access . | . . . . . . . . . . . Terminal Hacks 6 | . 3 . . . 1 . . 2 . . Record 1 | . . . . . . . . 1 . . Open DSF 1 | . . . . . . . . 1 . . Branch Access Points 1 | . 1 . . . . . . . . . Terminal Index 1 | . 1 . . . . . . . . . Scanalyzer Index 1 | . . . . . 1 . . . . . Unreport Threat 1 | . 1 . . . . . . . . . Fabricator Hacks 2 | . . . . . . . . 2 . . Load Schematic 1 | . . . . . . . . 1 . . Build 1 | . . . . . . . . 1 . . Repair Station Hacks . | . . . . . . . . . . . Recycling Unit Hacks . | . . . . . . . . . . . Scanalyzer 16 | . . . . . 12 . . 4 . . Insert Component 8 | . . . . . 6 . . 2 . . Analyze 8 | . . . . . 6 . . 2 . . Garrison Access Hacks . | . . . . . . . . . . . Unauthorized Hacks . | . . . . . . . . . . . Terminals . | . . . . . . . . . . . Fabricators . | . . . . . . . . . . . Repair Stations . | . . . . . . . . . . . Recycling Units . | . . . . . . . . . . . Scanalyzers . | . . . . . . . . . . . Garrison Access . | . . . . . . . . . . . Data Cores Recovered 1 | . 1 . . . . . . . . . Used . | . . . . . . . . . . . Hacking Detections 20 | . 6 . . 1 4 4 . 5 . . Full Trace Events 3 | . . . . . . 1 . 2 . . Feedback Events . | . . . . . . . . . . . Feedback Blocked . | . . . . . . . . . . . Robot Schematics Acquired . | . . . . . . . . . . . Robots Built . | . . . . . . . . . . . Authchips . | . . . . . . . . . . . Time . | . . . . . . . . . . . Total Robot Build Rating . | . . . . . . . . . . . Part Schematics Acquired 8 | . . . . . 6 . . 2 . . Parts Built 1 | . . . . . . . . 1 . . Authchips . | . . . . . . . . . . . Time 36 | . . . . . . . . 36 . . Total Part Build Rating 3 | . . . . . . . . 3 . . Parts Repaired . | . . . . . . . . . . . Time . | . . . . . . . . . . . Parts Recycled . | . . . . . . . . . . . Recycled Matter . | . . . . . . . . . . . Retrieved Matter . | . . . . . . . . . . . Retrieved Components . | . . . . . . . . . . . Parts Scanalyzed 8 | . . . . . 6 . . 2 . . Part Schematics Acquired 8 | . . . . . 6 . . 2 . . Parts Damaged . | . . . . . . . . . . . Bothacking | -11 -10 -10 -10 -9 -8 -7 -7 -7 -7 -7 ------------ Run | Yrd Mat Min Exi Min Mat Fac Was Fac DSF Gar Used RIF Installer 2 | . . . . . . . . . . 2 Structural Interface 1 | . . . . . . . . . . 1 Robots Hacked . | . . . . . . . . . . . Non-combat . | . . . . . . . . . . . Combat . | . . . . . . . . . . . Robot Hacks Applied . | . . . . . . . . . . . Relay Couplers Released . | . . . . . . . . . . . Fabnet Peak Effective % . | . . . . . . . . . . . Robots Rewired . | . . . . . . . . . . . Allies Hacked . | . . . . . . . . . . . Hacks Repelled . | . . . . . . . . . . . Allies | -11 -10 -10 -10 -9 -8 -7 -7 -7 -7 -7 -------- Run | Yrd Mat Min Exi Min Mat Fac Was Fac DSF Gar Total Allies 1 | . . . . 1 . . . . . . Largest Group 1 | . . . . 1 1 . . . . . Highest-Rated Group 31 | . . . . 31 31 . . . . . Highest-Rated Ally 31 | . . . . 31 31 . . . . . Total Orders . | . . . . . . . . . . . Ally Attacks 4 | . . . . . 4 . . . . . Total Damage 42 | . . . . . 42 . . . . . Kills . | . . . . . . . . . . . Allies Corrupted . | . . . . . . . . . . . Allies Melted . | . . . . . . . . . . . Intel | -11 -10 -10 -10 -9 -8 -7 -7 -7 -7 -7 ------- Run | Yrd Mat Min Exi Min Mat Fac Was Fac DSF Gar Robot Analysis Total . | . . . . . . . . . . . Derelict Logs Recovered 3 | . . 2 . 1 . . . . . . Drone Launches . | . . . . . . . . . . . Drone Recoveries . | . . . . . . . . . . . Exploration | -11 -10 -10 -10 -9 -8 -7 -7 -7 -7 -7 ------------- Run | Yrd Mat Min Exi Min Mat Fac Was Fac DSF Gar Turns Passed 5927 | 69 1252 808 326 238 1535 900 93 237 38 431 Spaces Moved 2946 | 38 594 354 204 140 454 458 140 290 60 214 Core 35 | 5 . . . . . . . . . 30 Treads 2234 | 33 594 354 204 140 454 446 . 7 . 2 Legs 125 | . . . . . . . . . . 125 Wheels . | . . . . . . . . . . . Hover 552 | . . . . . . 12 140 283 60 57 Flight . | . . . . . . . . . . . Fastest Speed 50 | 50 160 160 160 160 160 116 56 56 56 56 Average Speed 144 | 152 167 181 160 160 164 160 56 58 56 109 Slowest Speed 320 | 200 320 240 160 160 240 163 56 170 56 200 Overloaded Moves . | . . . . . . . . . . . Propulsion Burnouts . | . . . . . . . . . . . Robots Hopped . | . . . . . . . . . . . Cave-ins Triggered . | . . . . . . . . . . . Exploration Rate (%) 43 | 3 76 67 60 39 54 9 71 10 59 29 Regions Visited 10 Branch Regions 3 Pre-discovered Areas 2 | . . . . 2 . . . . . . Known Exits Taken 3 | . 1 . . . 1 . . 1 . . Unknown Exits Taken 4 | 1 . 1 1 1 . . . . . . Scrap Searched . | . . . . . . . . . . . Spaces Dug 47 | . . . . . 22 16 . 6 . 3 Terrain Destroyed 159 | . 13 75 . . 29 33 . 6 . 3 Melee 47 | . . . . . 22 16 . 6 . 3 Projectile . | . . . . . . . . . . . AOE 112 | . 13 75 . . 7 17 . . . . Terrain Rammed . | . . . . . . . . . . . Walls Destroyed . | . . . . . . . . . . . Machines Disabled . | . . . . . . . . . . . Actions | -11 -10 -10 -10 -9 -8 -7 -7 -7 -7 -7 --------- Run | Yrd Mat Min Exi Min Mat Fac Was Fac DSF Gar Total 4184 | 46 765 428 204 154 1128 532 159 342 65 361 Wait 813 | . 96 7 . 15 570 4 1 27 . 93 Move 2937 | 37 593 353 203 139 453 458 139 289 59 214 Hop . | . . . . . . . . . . . Pick Up 45 | 3 15 4 1 . 9 3 5 4 1 . Fast Attach 26 | 6 2 2 . . 6 1 1 8 . . Attach 28 | . 1 5 . . 5 9 2 1 2 3 Detach 8 | . . . . . 1 . 3 1 1 2 Swap 20 | . 6 2 . . 8 4 . . . . Drop 39 | . 7 2 . . 11 4 8 5 2 . Fire 126 | . 45 53 . . 19 8 . 1 . . Melee 117 | . . . . . 45 41 . 6 . 25 Ram . | . . . . . . . . . . . Kick . | . . . . . . . . . . . Crush 1 | . . . . . 1 . . . . . Escape Stasis 24 | . . . . . . . . . . 24 Rewire . | . . . . . . . . . . . Trap . | . . . . . . . . . . . Miscellaneous . | . . . . . . . . . . . Route ------- -11/Scrapyard -10/Materials (discovered 4 exits: [*Mat x3] / *Min) -10/Mines -10/Exiles -9/Mines -8/Materials -7/Factory -7/Waste -7/Factory -7/DSF -7/Garrison History --------- Turn | Location | Event 12 | -11/Scrapyard | Discovered new exit (range 16) 70 | -11/Scrapyard | Entered Materials 278 | -10/Materials | Discovered new exit (range 15) 316 | -10/Materials | Build established: Mutant 372 | -10/Materials | Discovered new exit (range 16) 412 | -10/Materials | Discovered new exit (range 16) 965 | -10/Materials | Identified exit to Mines 1171 | -10/Materials | Core integrity fell below 50% 1322 | -10/Materials | Entered Mines 1323 | -10/Mines | Assembled infested the area 1327 | -10/Mines | Learned 8 Materials zone layouts 1480 | -10/Mines | Learned location of 1 exit from Materials 1908 | -10/Mines | Core integrity fell below 20% 2124 | -10/Mines | Deemed a non-threat by the Exiles lab entrance 2124 | -10/Mines | Discovered new exit (range 5) 2130 | -10/Mines | Entered Exiles 2169 | -10/Exiles | Met 8R-AWN 2196 | -10/Exiles | Met EX-HEX 2241 | -10/Exiles | Met EX-BIN 2260 | -10/Exiles | Aligned with FarCom system 2262 | -10/Exiles | Given EX-Vault access code 2298 | -10/Exiles | Opened EX-Vault 2305 | -10/Exiles | Found Prototype Energy Cannon 2339 | -10/Exiles | Warned to stay clear of 0b10 Research branches 2383 | -10/Exiles | Met EX-DEC 2442 | -10/Exiles | Discovered new exit (range 11) 2456 | -10/Exiles | Left Exiles lab with Firepult 2456 | -10/Exiles | Entered Mines 2556 | -9/Mines | Learned location of Zion (-7) 2568 | -9/Mines | Escorted by a lone wolf Derelict 2588 | -9/Mines | Learned location of Storage (-7) 2668 | -9/Mines | Discovered new exit (range 8) 2694 | -9/Mines | Entered Materials 2694 | -8/Materials | Accompanied by 1 ally 2694 | -8/Materials | Evolved 4 slots: Power x1, Propulsion x1, Utility x2 2695 | -8/Materials | Identified exit to Factory 2870 | -8/Materials | Identified Firepult 4229 | -8/Materials | Entered Factory 4229 | -7/Factory | Evolved 2 slots: Propulsion x1, Utility x1 4372 | -7/Factory | Build established: Scavenger-Mutant 5026 | -7/Factory | Lost 3 parts (1p2u) 5127 | -7/Factory | Core integrity fell below 50% 5129 | -7/Factory | Sucked down chute 5129 | -7/Factory | Entered Waste 5140 | -7/Waste | Lost 9 parts (1p5n2u1w) 5144 | -7/Waste | EMP discharged 5144 | -7/Waste | System corruption reached 10% 5153 | -7/Waste | Spotted C-40 Crusher 5153 | -7/Waste | Spotted C-40 Crusher 5172 | -7/Waste | Spotted C-40 Crusher 5203 | -7/Waste | Spotted C-40 Crusher 5216 | -7/Waste | Spotted C-40 Crusher 5217 | -7/Waste | Discovered new exit (range 10) 5222 | -7/Waste | Entered Factory 5346 | -7/Factory | Fabricated Hacking Suite (x1) 5458 | -7/Factory | Identified exit to DSF 5459 | -7/Factory | Entered DSF 5483 | -7/DSF | Additional patrols routed to DSF 5491 | -7/DSF | Discovered new exit (range 11) 5497 | -7/DSF | Entered Garrison 5507 | -7/Garrison | Installed Relay Interface Framework 5591 | -7/Garrison | Expanded RIF knowledge: Structural Interface 5611 | -7/Garrison | Triggered checkpoint 5620 | -7/Garrison | Core integrity fell below 20% 5788 | -7/Garrison | Lost 3 parts (3n) 5928 | -7/Garrison | Destroyed by S-27 Virus with Autogun Last Messages --------------- 05903_ Field strength at 88. 05904_ System corrupted: Heat flow error (+227). 05904_ Field strength at 82. 05905_ Field strength at 76. 05906_ Field strength at 70. 05907_ Field strength at 64. 05908_ Field strength at 58. 05909_ Field strength at 52. 05910_ Field strength at 46. 05911_ Field strength at 40. 05913_ Field strength at 34. 05914_ Field strength at 28. 05915_ Field strength at 22. 05916_ Field strength at 16. 05917_ Field strength at 10. 05918_ Field strength at 4. 05919_ Stasis field depleted. 05921_ O2=V/GU,9DLYN1SDO XL:RDDFQPF=3F 05921_ RIF reveals location of phase wall. [Achievement: Just Browsing] Map ----- +----------------------------------------------------+ | ?????????????????????????????????????????????????? | | ?????????????????????????????????????????????????? | | ?????????????????????????????????????????????????? | | ?????????????????????????????????????????????????? | | ?????????????????????????????????????????????????? | | ?????????????????????????????????????????????????? | | ?????????????????????????????????????????????????? | | ?????????????????????????????????????????????????? | | ?????????????????????????????????????????????????? | | ?????????????????????????????????????????????????? | | ???????????????????????? ?????????????????????? | | ???????????????????????? ????????g????????????? | | ???????????????????????" sss?????????????????????? | | ??????????????????????C" s?????????????????????? | | ???????????????????????? #?????????????????????? | | ???????????????????????? #?????????????????????? | | ???????????????????????? ?????????????????????? | | ???????????????????????? ?????????????????????? | | ???????????????????????? ?????????????????????? | | ????????????????????????# #?????????????????????? | | ????????????????????????# #??lb?????????????????? | | ????????????????????????# ##+#??????????????????? | | ????????????????????????# ## #??????????????????? | | ????????????????????????# ## #??????????????????? | | ????????????????????????# ## #??????????????????? | | ????????????????????????#@ ## #??????????????????? | | ######################### ## #??????????????????? | | " ## + #??????????????????? | | ^ ####??????????????????? | | " ## ####+#######=######++#?????????????????????? | | #### #??# #?????# ###"## #?????????????????????? | | ???# #??# #?????# ### #?????????????????????? | | ???# #??# #?????# ##" #?????????????????????? | | ???# #??# #?????# #### #?????????????????????? | | ???# #??# #?????## #?# #?????????????????????? | | ???# #??# #??????#####?# #?????????????????????? | | ???# #??# #????????????# #?????????????????????? | | ???# #### ############?# #?????????????????????? | | ???# ## ## ### #?????????????????????? | | ???# / ## + #?????????????????????? | | ???# ## ## #?# #?????????????????????? | | ???# #### ## " ### #?????????????????????? | | ???# #??# """ """"# #?????????????????????? | | #### #??#### " "#?# #?????????????????????? | | + #?????# "#?# #?????????????????????? | | #### #?????# " "#?# #?????????????????????? | | ##?# #?????# """""#?# ??????????????????????? | | #?# #?????## ########?? ??????????????????????? | | ### ########+#######??? ??????????????????????? | | ^+ #?????????????????????? | +----------------------------------------------------+ Best States ------------- Heat Dissipation 48 Energy Generation 19 Energy Capacity 300 Matter Stores 300 Matter Capacity 300 Sight Range 16 Terrain Scan Range 16 Terrain Scan Density 10 Jamming Range 12 Armor Coverage 300 Core Shielding 20 Utility Shielding 33 Evasion (%) 55 Targeting Accuracy 11 Melee Accuracy 6 Recoil Reduction 4 Offensive Hacking 10 Defensive Hacking 10 Item Schematics ----------------- Hacking Suite | -8/Materials | Scanalyzed Sensor Array | -8/Materials | Scanalyzed Signal Interpreter | -8/Materials | Scanalyzed System Shield | -8/Materials | Scanalyzed Great Maul | -8/Materials | Scanalyzed Lgt. Treads | -8/Materials | Scanalyzed Transmission Jammer | -7/Factory | Scanalyzed Lgt. Deuterium Engine | -7/Factory | Scanalyzed Robot Schematics ------------------ None Fabricated ------------ Hacking Suite | x1 | -7/Factory Alien Tech Used ----------------- None Achievements -------------- Batter Up Just Browsing Part-time Excavator Party Time Challenges ------------ None Game ------ Seed AntimissileQuantumAmplifier Manual? 0 Play Time 00:56:35 Cumulative 21.7 hours Start 2024.06.29 @ 20:49:23 End 2024.06.29 @ 21:46:48 Sessions 1 Manual Loads 0 Difficulty Rogue Special Mode None Game No. 21 Rogue 21 Adventurer 0 Explorer 0 Win Type - Total 0 Types 0/0/0/0/0/0/0/0/0 Lore% 21 Gallery% 25 Achievement% 21 Wizard Run 0 Options --------- Layout 1 ASCII 0 Keyboard 0 Movement Arrows Keybinds 0 Fullscreen 2 Font 24/Terminus Map View 50x35 Zoom Use 0% Tactical HUD 1 Map Filters NONE Filters NONE Steam 1 RUN: fc8a1ef7-46fd-4050-853b-4c6a14d41c43